[Event "Titled Tuesday Blitz December 7 2021"]
[White "Donchenko, Alexander"]
[Black "Przybylski, Wojciech"]
[WhiteFideId "24603295"]
[BlackFideId "1117599"]
[WhiteElo "2816"]
[BlackElo "2456"]
[Result "1-0"]
[Round "01"]
[TimeControl "180+1"]
[Date "2021.12.07"]
[WhiteClock "0:00:02"]
[BlackClock "0:00:06"]

1. d4 {[%clk 0:03:00]}  d5 {[%clk 0:02:58]} 2. c4 {[%clk 0:03:00]}  c6 {[%clk 0:02:59]} 3. Nf3 {[%clk 0:03:01]}  Nf6 {[%clk 0:02:59]} 4. Qc2 {[%clk 0:03:01]}  dxc4 {[%clk 0:02:55]} 5. Qxc4 {[%clk 0:03:02]}  Bf5 {[%clk 0:02:54]} 6. g3 {[%clk 0:03:01]}  Nbd7 {[%clk 0:02:54]} 7. Bg2 {[%clk 0:03:02]}  e6 {[%clk 0:02:54]} 8. O-O {[%clk 0:03:01]}  Be7 {[%clk 0:02:54]} 9. e3 {[%clk 0:02:52]}  O-O {[%clk 0:02:51]} 10. Qe2 {[%clk 0:02:52]}  c5 {[%clk 0:02:34]} 11. Nc3 {[%clk 0:02:50]}  Qb6 {[%clk 0:02:16]} 12. Rd1 {[%clk 0:02:44]}  cxd4 {[%clk 0:02:10]} 13. Nxd4 {[%clk 0:02:41]}  Bg4 {[%clk 0:02:08]} 14. Nf3 {[%clk 0:02:39]}  Ne5 {[%clk 0:02:05]} 15. h3 {[%clk 0:02:14]}  Nxf3+ {[%clk 0:02:02]} 16. Bxf3 {[%clk 0:02:15]}  Bxh3 {[%clk 0:02:03]} 17. g4 {[%clk 0:02:14]}  Bd6 {[%clk 0:01:38]} 18. Bd2 {[%clk 0:01:59]}  Rfd8 {[%clk 0:01:30]} 19. Be1 {[%clk 0:01:58]}  Qc5 {[%clk 0:01:20]} 20. Rd4 {[%clk 0:01:47]}  Qe5 {[%clk 0:01:18]} 21. Rxd6 {[%clk 0:01:30]}  Rxd6 {[%clk 0:01:16]} 22. Nb5 {[%clk 0:01:26]}  Rb6 {[%clk 0:01:13]} 23. Nd4 {[%clk 0:01:23]}  h5 {[%clk 0:01:09]} 24. gxh5 {[%clk 0:01:18]}  Qg5+ {[%clk 0:01:03]} 25. Kh2 {[%clk 0:01:18]}  e5 {[%clk 0:01:02]} 26. Kxh3 {[%clk 0:01:07]}  exd4 {[%clk 0:01:01]} 27. exd4 {[%clk 0:01:08]}  Re8 {[%clk 0:00:55]} 28. Qd1 {[%clk 0:00:44]}  Rxb2 {[%clk 0:00:40]} 29. Qc1 {[%clk 0:00:44]}  Qf5+ {[%clk 0:00:39]} 30. Kg2 {[%clk 0:00:44]}  Rb5 {[%clk 0:00:35]} 31. a4 {[%clk 0:00:41]}  Rb3 {[%clk 0:00:32]} 32. Qd1 {[%clk 0:00:39]}  Rd3 {[%clk 0:00:31]} 33. Bd2 {[%clk 0:00:37]}  Rxd4 {[%clk 0:00:28]} 34. Qc1 {[%clk 0:00:30]}  Nxh5 {[%clk 0:00:27]} 35. Ra3 {[%clk 0:00:26]}  Nf4+ {[%clk 0:00:27]} 36. Bxf4 {[%clk 0:00:22]}  Rxf4 {[%clk 0:00:28]} 37. Qc7 {[%clk 0:00:16]}  Qg5+ {[%clk 0:00:27]} 38. Kf1 {[%clk 0:00:16]}  Rb4 {[%clk 0:00:24]} 39. Ra1 {[%clk 0:00:12]}  Qe5 {[%clk 0:00:23]} 40. Qc1 {[%clk 0:00:08]}  Rf4 {[%clk 0:00:20]} 41. Ra3 {[%clk 0:00:08]}  b6 {[%clk 0:00:18]} 42. Re3 {[%clk 0:00:07]}  Rxf3 {[%clk 0:00:15]} 43. Rxe5 {[%clk 0:00:05]}  Rxe5 {[%clk 0:00:16]} 44. Qc8+ {[%clk 0:00:05]}  Kh7 {[%clk 0:00:17]} 45. Qc2+ {[%clk 0:00:04]}  g6 {[%clk 0:00:16]} 46. Qc7 {[%clk 0:00:05]}  Ref5 {[%clk 0:00:16]} 47. Qxa7 {[%clk 0:00:04]}  Rxf2+ {[%clk 0:00:17]} 48. Ke1 {[%clk 0:00:05]}  R2f4 {[%clk 0:00:16]} 49. Qa6 {[%clk 0:00:04]}  Rb4 {[%clk 0:00:15]} 50. Qa7 {[%clk 0:00:03]}  Re4+ {[%clk 0:00:15]} 51. Kd2 {[%clk 0:00:01]}  Re6 {[%clk 0:00:13]} 52. Kd3 {[%clk 0:00:02]}  Kg7 {[%clk 0:00:13]} 53. Kd4 {[%clk 0:00:02]}  Ref6 {[%clk 0:00:14]} 54. Kd3 {[%clk 0:00:02]}  Ra5 {[%clk 0:00:13]} 55. Qd7 {[%clk 0:00:01]}  Rh5 {[%clk 0:00:14]} 56. Ke2 {[%clk 0:00:02]}  Re5+ {[%clk 0:00:13]} 57. Kd3 {[%clk 0:00:01]}  Ree6 {[%clk 0:00:13]} 58. Qc7 {[%clk 0:00:01]}  Rd6+ {[%clk 0:00:13]} 59. Ke2 {[%clk 0:00:02]}  Rfe6+ {[%clk 0:00:14]} 60. Kf2 {[%clk 0:00:02]}  Rd5 {[%clk 0:00:13]} 61. Kg3 {[%clk 0:00:03]}  Rf5 {[%clk 0:00:13]} 62. Kg4 {[%clk 0:00:03]}  Ref6 {[%clk 0:00:14]} 63. Qc3 {[%clk 0:00:03]}  Rf3 {[%clk 0:00:13]} 64. Qb2 {[%clk 0:00:03]}  Rf4+ {[%clk 0:00:13]} 65. Kg5 {[%clk 0:00:02]}  Rf5+ {[%clk 0:00:13]} 66. Kg4 {[%clk 0:00:03]}  Ra5 {[%clk 0:00:13]} 67. Qa1 {[%clk 0:00:02]}  b5 {[%clk 0:00:11]} 68. Kg3 {[%clk 0:00:02]}  bxa4 {[%clk 0:00:11]} 69. Qa3 {[%clk 0:00:03]}  Raa6 {[%clk 0:00:12]} 70. Kg4 {[%clk 0:00:03]}  Kg8 {[%clk 0:00:11]} 71. Kg5 {[%clk 0:00:03]}  Kh7 {[%clk 0:00:11]} 72. Qh3+ {[%clk 0:00:02]}  Kg8 {[%clk 0:00:11]} 73. Kh6 {[%clk 0:00:02]}  Ra8 {[%clk 0:00:08]} 74. Qc3 {[%clk 0:00:02]}  g5+ {[%clk 0:00:06]} 75. Qxf6 {[%clk 0:00:02]} 1-0


[Site "https://www.chess.com"]

[Event "Titled Tuesday Blitz December 7 2021"]
[White "Durarbayli, Vasif"]
[Black "Rozhkov, Viacheslav"]
[WhiteFideId "13402935"]
[BlackFideId "4181484"]
[WhiteElo "2851"]
[BlackElo "2465"]
[Result "1-0"]
[Round "01"]
[TimeControl "180+1"]
[Date "2021.12.07"]
[WhiteClock "0:00:15"]
[BlackClock "0:00:00"]

1. e4 {[%clk 0:02:59]}  c5 {[%clk 0:02:58]} 2. b3 {[%clk 0:02:59]}  Nc6 {[%clk 0:02:57]} 3. Bb2 {[%clk 0:02:58]}  d6 {[%clk 0:02:56]} 4. Bb5 {[%clk 0:02:57]}  e5 {[%clk 0:02:52]} 5. f4 {[%clk 0:02:48]}  a6 {[%clk 0:02:41]} 6. Bxc6+ {[%clk 0:02:47]}  bxc6 {[%clk 0:02:41]} 7. Qf3 {[%clk 0:01:56]}  Qc7 {[%clk 0:01:39]} 8. fxe5 {[%clk 0:01:53]}  dxe5 {[%clk 0:01:39]} 9. Na3 {[%clk 0:01:44]}  Be6 {[%clk 0:01:33]} 10. Qe2 {[%clk 0:01:34]}  Nf6 {[%clk 0:01:27]} 11. Nf3 {[%clk 0:01:34]}  Bd6 {[%clk 0:01:27]} 12. Nc4 {[%clk 0:01:32]}  Bxc4 {[%clk 0:01:26]} 13. Qxc4 {[%clk 0:01:33]}  O-O {[%clk 0:01:23]} 14. O-O {[%clk 0:01:32]}  Rab8 {[%clk 0:01:07]} 15. Bc3 {[%clk 0:01:30]}  Rfe8 {[%clk 0:00:55]} 16. Nh4 {[%clk 0:01:23]}  Bf8 {[%clk 0:00:37]} 17. Rf3 {[%clk 0:01:22]}  Re6 {[%clk 0:00:31]} 18. Raf1 {[%clk 0:01:21]}  Rd8 {[%clk 0:00:23]} 19. h3 {[%clk 0:00:56]}  Rd4 {[%clk 0:00:12]} 20. Bxd4 {[%clk 0:00:56]}  cxd4 {[%clk 0:00:12]} 21. d3 {[%clk 0:00:36]}  c5 {[%clk 0:00:11]} 22. Nf5 {[%clk 0:00:35]}  Qc6 {[%clk 0:00:08]} 23. Ng3 {[%clk 0:00:25]}  Qd7 {[%clk 0:00:06]} 24. Rf5 {[%clk 0:00:22]}  Qc6 {[%clk 0:00:05]} 25. a4 {[%clk 0:00:17]}  Qc7 {[%clk 0:00:05]} 26. Nh5 {[%clk 0:00:15]}  Nxh5 {[%clk 0:00:05]} 27. Rxh5 {[%clk 0:00:16]}  Qc6 {[%clk 0:00:05]} 28. Rhf5 {[%clk 0:00:16]}  f6 {[%clk 0:00:05]} 29. g4 {[%clk 0:00:15]}  Kh8 {[%clk 0:00:05]} 30. g5 {[%clk 0:00:15]}  Be7 {[%clk 0:00:00]} 31. Kh1 {[%clk 0:00:15]} 1-0


[Site "https://www.chess.com"]

[Event "Titled Tuesday Blitz December 7 2021"]
[White "Faizrakhmanov, Ramil"]
[Black "Majdan, Joanna"]
[WhiteFideId "24103209"]
[BlackFideId "1121979"]
[WhiteElo "2824"]
[BlackElo "2458"]
[Result "1/2-1/2"]
[Round "01"]
[TimeControl "180+1"]
[Date "2021.12.07"]
[WhiteClock "0:00:04"]
[BlackClock "0:00:11"]

1. e4 {[%clk 0:02:58]}  c5 {[%clk 0:02:59]} 2. Nf3 {[%clk 0:02:58]}  e6 {[%clk 0:02:58]} 3. d4 {[%clk 0:02:57]}  cxd4 {[%clk 0:02:59]} 4. Nxd4 {[%clk 0:02:58]}  a6 {[%clk 0:02:57]} 5. Bd3 {[%clk 0:02:56]}  Nf6 {[%clk 0:02:54]} 6. O-O {[%clk 0:02:54]}  Qc7 {[%clk 0:02:54]} 7. c4 {[%clk 0:02:48]}  d6 {[%clk 0:02:54]} 8. Nc3 {[%clk 0:02:47]}  g6 {[%clk 0:02:54]} 9. Be3 {[%clk 0:02:41]}  Bg7 {[%clk 0:02:53]} 10. f4 {[%clk 0:02:40]}  O-O {[%clk 0:02:53]} 11. Qf3 {[%clk 0:02:34]}  Nc6 {[%clk 0:02:39]} 12. Nxc6 {[%clk 0:02:20]}  bxc6 {[%clk 0:02:40]} 13. Rae1 {[%clk 0:02:16]}  e5 {[%clk 0:02:32]} 14. fxe5 {[%clk 0:02:14]}  dxe5 {[%clk 0:02:32]} 15. Bg5 {[%clk 0:02:07]}  Nh5 {[%clk 0:02:15]} 16. c5 {[%clk 0:01:59]}  Be6 {[%clk 0:02:08]} 17. g3 {[%clk 0:01:51]}  f6 {[%clk 0:02:07]} 18. Be3 {[%clk 0:01:50]}  f5 {[%clk 0:02:06]} 19. exf5 {[%clk 0:01:46]}  Bxf5 {[%clk 0:02:07]} 20. Bxf5 {[%clk 0:01:45]}  Rxf5 {[%clk 0:02:08]} 21. Qe4 {[%clk 0:01:44]}  Nf6 {[%clk 0:02:04]} 22. Qc4+ {[%clk 0:01:43]}  Kh8 {[%clk 0:01:52]} 23. Rxf5 {[%clk 0:01:34]}  gxf5 {[%clk 0:01:53]} 24. Rf1 {[%clk 0:01:34]}  Ng4 {[%clk 0:01:48]} 25. Bc1 {[%clk 0:01:33]}  Rf8 {[%clk 0:01:47]} 26. Qe6 {[%clk 0:01:32]}  Rf6 {[%clk 0:01:11]} 27. Qe8+ {[%clk 0:01:22]}  Rf8 {[%clk 0:01:10]} 28. Qh5 {[%clk 0:01:22]}  Qd7 {[%clk 0:01:07]} 29. Kg2 {[%clk 0:00:59]}  e4 {[%clk 0:00:43]} 30. h3 {[%clk 0:00:54]}  Ne5 {[%clk 0:00:40]} 31. Bh6 {[%clk 0:00:46]}  Nf3 {[%clk 0:00:32]} 32. Bxg7+ {[%clk 0:00:43]}  Qxg7 {[%clk 0:00:33]} 33. Rd1 {[%clk 0:00:31]}  Rg8 {[%clk 0:00:32]} 34. g4 {[%clk 0:00:31]}  fxg4 {[%clk 0:00:32]} 35. hxg4 {[%clk 0:00:32]}  Qxg4+ {[%clk 0:00:31]} 36. Qxg4 {[%clk 0:00:33]}  Rxg4+ {[%clk 0:00:32]} 37. Kf2 {[%clk 0:00:33]}  Rh4 {[%clk 0:00:25]} 38. Ke3 {[%clk 0:00:33]}  Ne5 {[%clk 0:00:22]} 39. Rd4 {[%clk 0:00:26]}  Ng4+ {[%clk 0:00:20]} 40. Kxe4 {[%clk 0:00:24]}  Nf6+ {[%clk 0:00:20]} 41. Ke5 {[%clk 0:00:22]}  Rxd4 {[%clk 0:00:18]} 42. Kxd4 {[%clk 0:00:23]}  h5 {[%clk 0:00:18]} 43. Ke5 {[%clk 0:00:22]}  Kg7 {[%clk 0:00:14]} 44. Ne2 {[%clk 0:00:21]}  h4 {[%clk 0:00:12]} 45. Nf4 {[%clk 0:00:21]}  Ng4+ {[%clk 0:00:10]} 46. Kf5 {[%clk 0:00:18]}  Nf2 {[%clk 0:00:11]} 47. Ne6+ {[%clk 0:00:13]}  Kf7 {[%clk 0:00:10]} 48. Nd8+ {[%clk 0:00:13]}  Ke8 {[%clk 0:00:11]} 49. Ne6 {[%clk 0:00:08]}  h3 {[%clk 0:00:12]} 50. Ng7+ {[%clk 0:00:03]}  Kf7 {[%clk 0:00:11]} 51. Nh5 {[%clk 0:00:03]}  h2 {[%clk 0:00:11]} 52. Ng3 {[%clk 0:00:03]}  h1=Q {[%clk 0:00:11]} 53. Nxh1 {[%clk 0:00:04]}  Nxh1 {[%clk 0:00:12]} 54. Ke5 {[%clk 0:00:03]}  Ke7 {[%clk 0:00:13]} 55. b4 {[%clk 0:00:03]}  Nf2 {[%clk 0:00:13]} 56. Kd4 {[%clk 0:00:02]}  Kd7 {[%clk 0:00:12]} 57. a4 {[%clk 0:00:02]}  Ng4 {[%clk 0:00:12]} 58. Kc4 {[%clk 0:00:02]}  Kc7 {[%clk 0:00:12]} 59. b5 {[%clk 0:00:02]}  Ne5+ {[%clk 0:00:13]} 60. Kb4 {[%clk 0:00:02]}  axb5 {[%clk 0:00:11]} 61. axb5 {[%clk 0:00:03]}  Nd3+ {[%clk 0:00:11]} 62. Ka5 {[%clk 0:00:04]}  Nxc5 {[%clk 0:00:10]} 63. bxc6 {[%clk 0:00:04]}  Kxc6 {[%clk 0:00:11]} 1/2-1/2


[Site "https://www.chess.com"]

[Event "Titled Tuesday Blitz December 7 2021"]
[White "Fawzy, Adham"]
[Black "Shuvalov, Evgenij"]
[WhiteFideId "10613129"]
[BlackFideId "4187237"]
[WhiteElo "2727"]
[BlackElo "2413"]
[Result "1-0"]
[Round "01"]
[TimeControl "180+1"]
[Date "2021.12.07"]
[WhiteClock "0:01:21"]
[BlackClock "0:01:25"]

1. e4 {[%clk 0:02:57]}  e6 {[%clk 0:02:59]} 2. d4 {[%clk 0:02:57]}  d5 {[%clk 0:03:00]} 3. Nc3 {[%clk 0:02:58]}  Bb4 {[%clk 0:03:00]} 4. exd5 {[%clk 0:02:58]}  exd5 {[%clk 0:03:00]} 5. Bd3 {[%clk 0:02:58]}  Nc6 {[%clk 0:02:58]} 6. Ne2 {[%clk 0:02:57]}  Nf6 {[%clk 0:02:55]} 7. Bg5 {[%clk 0:02:55]}  Be7 {[%clk 0:02:55]} 8. Qd2 {[%clk 0:02:56]}  Nb4 {[%clk 0:02:55]} 9. O-O-O {[%clk 0:02:52]}  c6 {[%clk 0:02:54]} 10. f3 {[%clk 0:02:51]}  h5 {[%clk 0:02:40]} 11. Rhe1 {[%clk 0:02:45]}  Be6 {[%clk 0:02:40]} 12. Nf4 {[%clk 0:02:39]}  Nxd3+ {[%clk 0:02:39]} 13. Qxd3 {[%clk 0:02:38]}  Bd7 {[%clk 0:02:29]} 14. Bxf6 {[%clk 0:02:29]}  gxf6 {[%clk 0:02:30]} 15. Re3 {[%clk 0:02:29]}  Kf8 {[%clk 0:02:30]} 16. Kb1 {[%clk 0:02:04]}  Bd6 {[%clk 0:02:30]} 17. Nce2 {[%clk 0:02:04]}  Qc7 {[%clk 0:02:26]} 18. g3 {[%clk 0:02:04]}  Re8 {[%clk 0:02:23]} 19. Rxe8+ {[%clk 0:02:02]}  Kxe8 {[%clk 0:02:24]} 20. Ng2 {[%clk 0:01:56]}  Kd8 {[%clk 0:02:22]} 21. Nh4 {[%clk 0:01:45]}  Qc8 {[%clk 0:02:14]} 22. Nc1 {[%clk 0:01:44]}  Bh3 {[%clk 0:02:10]} 23. Re1 {[%clk 0:01:44]}  Qd7 {[%clk 0:02:10]} 24. Qd2 {[%clk 0:01:42]}  Kc8 {[%clk 0:02:04]} 25. Nd3 {[%clk 0:01:43]}  b6 {[%clk 0:02:03]} 26. a3 {[%clk 0:01:43]}  Kb7 {[%clk 0:02:03]} 27. Qe2 {[%clk 0:01:36]}  Bf5 {[%clk 0:01:59]} 28. Nb4 {[%clk 0:01:35]}  b5 {[%clk 0:01:34]} 29. Nxf5 {[%clk 0:01:20]}  Qxf5 {[%clk 0:01:35]} 30. Nd3 {[%clk 0:01:20]}  h4 {[%clk 0:01:26]} 31. g4 {[%clk 0:01:21]}  Qd7 {[%clk 0:01:24]} 32. h3 {[%clk 0:01:21]}  Bg3 {[%clk 0:01:24]} 33. Nc5+ {[%clk 0:01:21]}  Kc7 {[%clk 0:01:24]} 34. Nxd7 {[%clk 0:01:21]}  Kxd7 {[%clk 0:01:25]} 35. Qe7+ {[%clk 0:01:21]} 1-0


[Site "https://www.chess.com"]

[Event "Titled Tuesday Blitz December 7 2021"]
[White "Gaehwiler, Gabriel"]
[Black "Dolzhykova, Kateryna"]
[WhiteFideId "1314530"]
[BlackFideId "14113414"]
[WhiteElo "2702"]
[BlackElo "2385"]
[Result "0-1"]
[Round "01"]
[TimeControl "180+1"]
[Date "2021.12.07"]
[WhiteClock "0:00:20"]
[BlackClock "0:00:09"]

1. d4 {[%clk 0:03:00]}  Nf6 {[%clk 0:02:56]} 2. c4 {[%clk 0:03:00]}  e6 {[%clk 0:02:56]} 3. g3 {[%clk 0:03:01]}  d5 {[%clk 0:02:56]} 4. Bg2 {[%clk 0:03:01]}  Be7 {[%clk 0:02:56]} 5. Nf3 {[%clk 0:03:01]}  O-O {[%clk 0:02:56]} 6. Qc2 {[%clk 0:03:02]}  dxc4 {[%clk 0:02:55]} 7. Qxc4 {[%clk 0:03:01]}  a6 {[%clk 0:02:53]} 8. Bf4 {[%clk 0:02:57]}  Nd5 {[%clk 0:02:49]} 9. O-O {[%clk 0:02:56]}  Nxf4 {[%clk 0:02:47]} 10. gxf4 {[%clk 0:02:57]}  b5 {[%clk 0:02:46]} 11. Qc2 {[%clk 0:02:57]}  g6 {[%clk 0:02:14]} 12. Rd1 {[%clk 0:02:55]}  Bb7 {[%clk 0:02:13]} 13. Nc3 {[%clk 0:02:49]}  Nd7 {[%clk 0:02:11]} 14. Ne5 {[%clk 0:02:48]}  Bxg2 {[%clk 0:02:10]} 15. Kxg2 {[%clk 0:02:49]}  Nb6 {[%clk 0:01:54]} 16. Qe4 {[%clk 0:02:43]}  Bd6 {[%clk 0:01:34]} 17. Rac1 {[%clk 0:02:40]}  Qh4 {[%clk 0:01:22]} 18. Qf3 {[%clk 0:02:28]}  f6 {[%clk 0:01:20]} 19. Nd3 {[%clk 0:02:25]}  Rae8 {[%clk 0:01:17]} 20. Ne4 {[%clk 0:02:21]}  e5 {[%clk 0:00:33]} 21. dxe5 {[%clk 0:02:12]}  fxe5 {[%clk 0:00:34]} 22. Qg3 {[%clk 0:01:54]}  Qh5 {[%clk 0:00:20]} 23. Qf3 {[%clk 0:01:32]}  Qh4 {[%clk 0:00:08]} 24. Rc5 {[%clk 0:01:26]}  Bxc5 {[%clk 0:00:07]} 25. Nexc5 {[%clk 0:01:23]}  Nc4 {[%clk 0:00:06]} 26. Qg3 {[%clk 0:01:21]}  Qxg3+ {[%clk 0:00:06]} 27. hxg3 {[%clk 0:01:22]}  e4 {[%clk 0:00:06]} 28. Nb4 {[%clk 0:01:21]}  Nxb2 {[%clk 0:00:06]} 29. Rd7 {[%clk 0:01:18]}  a5 {[%clk 0:00:06]} 30. Nd5 {[%clk 0:01:14]}  Rf7 {[%clk 0:00:06]} 31. Nxc7 {[%clk 0:00:58]}  Rxd7 {[%clk 0:00:05]} 32. Nxd7 {[%clk 0:00:54]}  Re7 {[%clk 0:00:05]} 33. Nd5 {[%clk 0:00:54]}  Rxd7 {[%clk 0:00:05]} 34. Nf6+ {[%clk 0:00:55]}  Kf7 {[%clk 0:00:06]} 35. Nxd7 {[%clk 0:00:56]}  Ke6 {[%clk 0:00:04]} 36. Nc5+ {[%clk 0:00:51]}  Kd5 {[%clk 0:00:04]} 37. Nb3 {[%clk 0:00:51]}  a4 {[%clk 0:00:04]} 38. Nc1 {[%clk 0:00:51]}  b4 {[%clk 0:00:04]} 39. Kf1 {[%clk 0:00:50]}  Nc4 {[%clk 0:00:04]} 40. Ke1 {[%clk 0:00:50]}  Kd4 {[%clk 0:00:04]} 41. g4 {[%clk 0:00:49]}  Kc3 {[%clk 0:00:03]} 42. f5 {[%clk 0:00:49]}  gxf5 {[%clk 0:00:04]} 43. gxf5 {[%clk 0:00:49]}  b3 {[%clk 0:00:04]} 44. axb3 {[%clk 0:00:49]}  axb3 {[%clk 0:00:05]} 45. Nxb3 {[%clk 0:00:39]}  Kxb3 {[%clk 0:00:06]} 46. f6 {[%clk 0:00:39]}  Nd6 {[%clk 0:00:06]} 47. Kd2 {[%clk 0:00:23]}  Kc4 {[%clk 0:00:06]} 48. Ke3 {[%clk 0:00:20]}  Kd5 {[%clk 0:00:06]} 49. Kf4 {[%clk 0:00:21]}  Ke6 {[%clk 0:00:07]} 50. Kg5 {[%clk 0:00:21]}  Ne8 {[%clk 0:00:04]} 51. f3 {[%clk 0:00:10]}  exf3 {[%clk 0:00:04]} 52. exf3 {[%clk 0:00:10]}  Nxf6 {[%clk 0:00:05]} 53. Kf4 {[%clk 0:00:09]}  Kf7 {[%clk 0:00:05]} 54. Kg5 {[%clk 0:00:10]}  Kg7 {[%clk 0:00:05]} 55. f4 {[%clk 0:00:10]}  h6+ {[%clk 0:00:05]} 56. Kf5 {[%clk 0:00:11]}  Ng8 {[%clk 0:00:03]} 57. Kg4 {[%clk 0:00:11]}  Ne7 {[%clk 0:00:03]} 58. Kh5 {[%clk 0:00:11]}  Nf5 {[%clk 0:00:03]} 59. Kg4 {[%clk 0:00:12]}  Kf6 {[%clk 0:00:04]} 60. Kh5 {[%clk 0:00:12]}  Kf7 {[%clk 0:00:03]} 61. Kg4 {[%clk 0:00:12]}  Ke6 {[%clk 0:00:04]} 62. Kh5 {[%clk 0:00:13]}  Kd5 {[%clk 0:00:04]} 63. Kg4 {[%clk 0:00:11]}  Ke4 {[%clk 0:00:05]} 64. Kh3 {[%clk 0:00:11]}  Kxf4 {[%clk 0:00:05]} 65. Kh2 {[%clk 0:00:11]}  Kg5 {[%clk 0:00:05]} 66. Kh1 {[%clk 0:00:12]}  h5 {[%clk 0:00:06]} 67. Kg2 {[%clk 0:00:13]}  h4 {[%clk 0:00:07]} 68. Kh1 {[%clk 0:00:14]}  Kg4 {[%clk 0:00:08]} 69. Kh2 {[%clk 0:00:15]}  h3 {[%clk 0:00:08]} 70. Kh1 {[%clk 0:00:16]}  Kg3 {[%clk 0:00:08]} 71. Kg1 {[%clk 0:00:16]}  Nd6 {[%clk 0:00:08]} 72. Kh1 {[%clk 0:00:17]}  Ne4 {[%clk 0:00:08]} 73. Kg1 {[%clk 0:00:18]}  h2+ {[%clk 0:00:08]} 74. Kf1 {[%clk 0:00:19]}  h1=Q+ {[%clk 0:00:08]} 75. Ke2 {[%clk 0:00:20]}  Qf3+ {[%clk 0:00:09]} 0-1


[Site "https://www.chess.com"]

[Event "Titled Tuesday Blitz December 7 2021"]
[White "Grunberg, Mihai-Lucian"]
[Black "Yilmaz, Mustafa"]
[WhiteFideId "1204149"]
[BlackFideId "6302718"]
[WhiteElo "2497"]
[BlackElo "2995"]
[Result "0-1"]
[Round "01"]
[TimeControl "180+1"]
[Date "2021.12.07"]
[WhiteClock "0:00:10"]
[BlackClock "0:00:37"]

1. Nf3 {[%clk 0:03:00]}  c5 {[%clk 0:02:59]} 2. c4 {[%clk 0:02:57]}  Nc6 {[%clk 0:02:58]} 3. g3 {[%clk 0:02:56]}  g6 {[%clk 0:02:58]} 4. Bg2 {[%clk 0:02:56]}  Bg7 {[%clk 0:02:58]} 5. O-O {[%clk 0:02:57]}  e6 {[%clk 0:02:58]} 6. Nc3 {[%clk 0:02:56]}  d6 {[%clk 0:02:58]} 7. e3 {[%clk 0:02:54]}  Nge7 {[%clk 0:02:58]} 8. d4 {[%clk 0:02:54]}  O-O {[%clk 0:02:54]} 9. b3 {[%clk 0:02:52]}  Rb8 {[%clk 0:02:47]} 10. Bb2 {[%clk 0:02:51]}  b6 {[%clk 0:02:46]} 11. Qe2 {[%clk 0:02:48]}  cxd4 {[%clk 0:02:45]} 12. exd4 {[%clk 0:02:42]}  Nxd4 {[%clk 0:02:29]} 13. Nxd4 {[%clk 0:02:42]}  Bxd4 {[%clk 0:02:30]} 14. Rfd1 {[%clk 0:02:37]}  Bg7 {[%clk 0:02:17]} 15. Nb5 {[%clk 0:02:34]}  Nf5 {[%clk 0:02:13]} 16. Nxa7 {[%clk 0:02:28]}  Bb7 {[%clk 0:02:09]} 17. Nc6 {[%clk 0:02:26]}  Bxc6 {[%clk 0:02:09]} 18. Bxc6 {[%clk 0:02:27]}  Bxb2 {[%clk 0:02:02]} 19. Qxb2 {[%clk 0:02:26]}  e5 {[%clk 0:02:02]} 20. Bg2 {[%clk 0:01:54]}  Qf6 {[%clk 0:02:00]} 21. Rd5 {[%clk 0:01:41]}  h5 {[%clk 0:01:59]} 22. h4 {[%clk 0:01:36]}  Nd4 {[%clk 0:01:58]} 23. Rd1 {[%clk 0:01:35]}  Rfe8 {[%clk 0:01:54]} 24. Rd2 {[%clk 0:01:24]}  Rbc8 {[%clk 0:01:54]} 25. Qa3 {[%clk 0:01:23]}  Rc5 {[%clk 0:01:54]} 26. Qa7 {[%clk 0:01:16]}  Qd8 {[%clk 0:01:26]} 27. f4 {[%clk 0:01:02]}  Re7 {[%clk 0:01:09]} 28. Qa6 {[%clk 0:01:00]}  Kg7 {[%clk 0:00:57]} 29. fxe5 {[%clk 0:00:57]}  Rxd5 {[%clk 0:00:57]} 30. Bxd5 {[%clk 0:00:54]}  dxe5 {[%clk 0:00:57]} 31. Kg2 {[%clk 0:00:46]}  Qd6 {[%clk 0:00:56]} 32. Qa4 {[%clk 0:00:30]}  Nf5 {[%clk 0:00:50]} 33. Kh2 {[%clk 0:00:25]}  e4 {[%clk 0:00:48]} 34. Rg2 {[%clk 0:00:24]}  Nxh4 {[%clk 0:00:46]} 35. Re2 {[%clk 0:00:21]}  Nf5 {[%clk 0:00:46]} 36. Rg2 {[%clk 0:00:21]}  h4 {[%clk 0:00:45]} 37. Qc6 {[%clk 0:00:16]}  hxg3+ {[%clk 0:00:46]} 38. Kg1 {[%clk 0:00:15]}  Qf4 {[%clk 0:00:44]} 39. Re2 {[%clk 0:00:10]}  Qf3 {[%clk 0:00:37]} 0-1


[Site "https://www.chess.com"]